bitfinex/quotes_BTCUSD_20240730
["timestamp","ask_amount","ask_price","bid_price","bid_amount"]
[1722332084446,0.28722192,66897.0,66896.0,0.09982626]
[1722332085235,0.17696976,66897.0,66896.0,0.09982626]
[1722332085428,0.47593676,66897.0,66896.0,0.09982626]
[1722332085835,0.47438256,66897.0,66896.0,0.09982626]
[1722332086962,0.49783987,66897.0,66896.0,0.09982626]
[1722332087311,0.47332164,66897.0,66896.0,0.09982626]
[1722332087511,0.17435464,66897.0,66896.0,0.09982626]
[1722332087737,0.02487164,66897.0,66896.0,0.09982626]
[1722332087898,0.17590884,66897.0,66896.0,0.09982626]
[1722332088320,0.17435464,66897.0,66896.0,0.09982626]
[1722332088519,0.17590884,66897.0,66896.0,0.09982626]
[1722332088719,0.17435464,66897.0,66896.0,0.09982626]
[1722332089404,0.17590884,66897.0,66896.0,0.09982626]
[1722332089573,0.17435464,66897.0,66896.0,0.09982626]
[1722332089889,0.17590884,66897.0,66896.0,0.09982626]
[1722332090089,0.19936615,66897.0,66896.0,0.09982626]
[1722332090292,0.31118439,66897.0,66896.0,0.09982626]
[1722332090657,0.16178125,66897.0,66896.0,0.09982626]
[1722332090920,0.16022705,66897.0,66896.0,0.09982626]
[1722332091080,0.02428731,66897.0,66896.0,0.09982626]
[1722332091280,0.16022917,66897.0,66896.0,0.09982626]
[1722332092147,0.16178337,66897.0,66896.0,0.09982626]
[1722332092284,0.16022917,66897.0,66896.0,0.09982626]
[1722332093069,0.16022577,66897.0,66896.0,0.09982626]
[1722332093934,0.16075225,66897.0,66896.0,0.09982626]
[1722332094385,0.38693525,66897.0,66896.0,0.09982626]
[1722332094733,0.38693525,66897.0,66896.0,0.0244791]
[1722332094734,0.68590225,66897.0,66896.0,0.0244791]
[1722332094942,0.52743525,66897.0,66896.0,0.0244791]
[1722332095116,0.80295419,66897.0,66896.0,0.0244791]
[1722332095328,0.50398719,66897.0,66896.0,0.016251]
[1722332095787,0.50398719,66897.0,66896.0,0.02448333]
[1722332095965,0.69114182,66897.0,66896.0,0.02448333]
[1722332096366,0.69114182,66897.0,66896.0,0.016251]
[1722332097366,0.69132614,66897.0,66896.0,0.016251]
[1722332098334,0.71478358,66897.0,66896.0,0.016251]
[1722332099788,1.01375058,66897.0,66896.0,0.016251]
[1722332100507,0.98890444,66897.0,66896.0,0.016251]
[1722332100903,1.01268376,66897.0,66896.0,0.016251]
[1722332101145,1.15726491,66897.0,66896.0,0.016251]
[1722332101351,1.15726499,66897.0,66896.0,0.016251]
[1722332102133,1.01268384,66897.0,66896.0,0.016251]
[1722332102902,1.01277312,66897.0,66896.0,0.016251]
[1722332105983,1.33301946,66897.0,66896.0,0.016251]
[1722332106183,1.46738979,66897.0,66896.0,0.016251]
[1722332106384,1.33319961,66897.0,66896.0,0.016251]
[1722332106854,1.30974217,66897.0,66896.0,0.016251]
[1722332107052,0.47332883,66897.0,66896.0,0.016251]
[1722332107609,0.44928,66897.0,66896.0,0.016251]
[1722332107811,0.44928,66897.0,66896.0,0.02447209]
[1722332109745,0.47273696,66897.0,66896.0,0.02447209]
[1722332110534,0.49664725,66897.0,66896.0,0.02447209]
[1722332111091,0.49664725,66897.0,66896.0,0.016251]
[1722332112827,0.49639425,66897.0,66896.0,0.016251]
[1722332113418,0.49639431,66897.0,66896.0,0.016251]
[1722332114815,0.93196131,66897.0,66896.0,0.016251]
[1722332116056,0.90830396,66897.0,66896.0,0.016251]
[1722332116257,0.9319559,66897.0,66896.0,0.016251]
[1722332117046,1.25220224,66897.0,66896.0,0.016251]
[1722332117259,1.10122135,66897.0,66896.0,0.016251]
[1722332117446,1.40018835,66897.0,66896.0,0.016251]
[1722332118105,1.37673139,66897.0,66896.0,0.016251]
[1722332118723,1.37556316,66897.0,66896.0,0.016251]
[1722332118940,1.22757705,66897.0,66896.0,0.016251]
[1722332119079,1.23660731,66897.0,66896.0,0.016251]
[1722332119283,1.2366074,66897.0,66896.0,0.016251]
[1722332121108,1.26006634,66897.0,66896.0,0.016251]
[1722332121515,1.33676634,66897.0,66896.0,0.016251]
[1722332121733,1.00748974,66897.0,66896.0,0.016251]
[1722332121897,0.87088974,66897.0,66896.0,0.016251]
[1722332122102,0.57192274,66897.0,66896.0,0.016251]
[1722332122423,0.5484638,66897.0,66896.0,0.0244783]
[1722332123030,0.52598,66897.0,66896.0,0.016251]
[1722332123270,0.54938987,66897.0,66896.0,0.0244783]
[1722332123472,0.84835687,66897.0,66896.0,0.016251]
[1722332125033,0.98605687,66897.0,66896.0,0.016251]
[1722332125640,1.12194899,66897.0,66896.0,0.016251]
[1722332125846,1.1451815,66897.0,66896.0,0.016251]
[1722332126072,1.03061666,66897.0,66896.0,0.016251]
[1722332126292,1.32958366,66897.0,66896.0,0.016251]
[1722332126690,1.30612585,66897.0,66896.0,0.016251]
[1722332129004,1.22942585,66897.0,66896.0,0.016251]
[1722332129404,1.30612585,66897.0,66896.0,0.016251]
[1722332129652,1.32958416,66897.0,66896.0,0.016251]
[1722332132281,1.30635165,66897.0,66896.0,0.016251]
[1722332132493,1.32881841,66897.0,66896.0,0.016251]
[1722332132860,1.32880644,66897.0,66896.0,0.016251]
[1722332134060,1.30534813,66897.0,66896.0,0.016251]
[1722332134510,1.28289334,66897.0,66896.0,0.016251]
[1722332134711,1.43453206,66897.0,66896.0,0.016251]
[1722332135540,1.41205569,66897.0,66896.0,0.016251]
[1722332135888,1.35769984,66897.0,66896.0,0.016251]
[1722332136159,1.43439984,66897.0,66896.0,0.016251]
[1722332136397,1.30523749,66897.0,66896.0,0.016251]
[1722332136633,1.00627049,66897.0,66896.0,0.016251]
[1722332136898,0.86857049,66897.0,66896.0,0.016251]
[1722332137120,0.89202898,66897.0,66896.0,0.016251]
[1722332137349,0.86857049,66897.0,66896.0,0.016251]
[1722332137596,0.17265715,66897.0,66896.0,0.016251]
[1722332137843,0.47162415,66897.0,66896.0,0.016251]
[1722332138080,0.44928,66897.0,66896.0,0.016251]
[1722332138302,0.150313,66897.0,66896.0,0.03075721]
[1722332138542,0.44928,66897.0,66896.0,0.03075721]
[1722332138731,0.52598,66897.0,66896.0,0.016251]
[1722332139144,0.52598,66897.0,66896.0,0.03075721]
[1722332139302,0.52598,66897.0,66896.0,0.016251]
[1722332140156,0.54943757,66897.0,66896.0,0.016251]
[1722332140356,0.84840457,66897.0,66896.0,0.016251]
[1722332140507,0.54943757,66897.0,66896.0,0.016251]
[1722332143104,0.25047057,66897.0,66896.0,0.016251]
[1722332143338,0.54943757,66897.0,66896.0,0.03075721]
[1722332143965,0.02428757,66897.0,66896.0,0.03075721]
[1722332144192,0.00083,66897.0,66896.0,0.61271321]
[1722332144408,0.00083,66897.0,66896.0,0.98277469]
[1722332144840,0.00083,66897.0,66896.0,1.21065521]
[1722332145041,0.00083,66897.0,66896.0,1.36128825]
[1722332145245,0.00083,66897.0,66896.0,1.75935925]
[1722332145450,0.00083,66897.0,66896.0,1.99227874]
[1722332145652,0.00083,66897.0,66896.0,1.99227104]
[1722332145867,0.00083,66910.0,66897.0,0.00880292]
[1722332145868,0.04467632,66909.0,66897.0,0.00880292]
[1722332146120,0.04467632,66908.0,66907.0,0.525283]
[1722332146588,0.03960632,66910.0,66908.0,0.149458]
[1722332146811,0.03960632,66910.0,66909.0,0.149456]
[1722332146812,0.00083,66910.0,66909.0,0.149456]
[1722332147016,0.03510632,66911.0,66909.0,0.149456]
[1722332147222,0.03510632,66911.0,66909.0,0.16384992]
[1722332147445,0.21649759,66915.0,66910.0,0.07534716]
[1722332147631,0.02345215,66911.0,66910.0,0.30150116]
[1722332147843,0.02345215,66911.0,66910.0,0.15204716]
[1722332147970,0.02345215,66911.0,66910.0,0.07534716]
[1722332147971,0.31620415,66911.0,66910.0,0.07534716]
[1722332148187,0.31620415,66911.0,66910.0,0.01439392]
[1722332148188,0.99953815,66911.0,66910.0,0.01439392]
[1722332148390,0.298936,66904.0,66901.0,0.07534716]
[1722332148619,0.149472,66902.0,66901.0,0.07534716]
[1722332148818,0.14947,66903.0,66902.0,0.01608784]
[1722332149032,0.149468,66904.0,66902.0,0.01052429]
[1722332149238,0.149465,66905.0,66902.0,0.02489076]
[1722332149447,0.06694365,66907.0,66902.0,0.02489076]
[1722332149685,0.89125,66903.0,66902.0,0.01052429]
[1722332149800,1.00111724,66903.0,66902.0,0.01052429]
[1722332149997,1.32337739,66903.0,66902.0,0.02452429]
[1722332150203,1.47407073,66903.0,66902.0,0.02452429]
[1722332150412,1.36249336,66903.0,66902.0,0.02452429]
[1722332150621,1.66143336,66903.0,66902.0,0.02452429]
[1722332150840,1.71269191,66903.0,66902.0,0.02452429]
[1722332151088,1.86956757,66903.0,66902.0,0.02452429]
[1722332151241,1.5696332,66903.0,66902.0,0.01052429]
[1722332151469,1.5706332,66903.0,66902.0,0.01052429]
[1722332151672,1.54383106,66903.0,66902.0,0.01652429]
[1722332151875,1.57063432,66903.0,66902.0,0.01652429]
[1722332152072,1.57063432,66903.0,66902.0,0.01052429]
[1722332152073,1.56963432,66903.0,66902.0,0.01052429]
[1722332152275,1.55417728,66903.0,66902.0,0.01052429]
[1722332152475,1.55917728,66903.0,66902.0,0.01052429]
[1722332153090,1.55417728,66903.0,66902.0,0.01052429]
[1722332153461,1.55397053,66903.0,66902.0,0.01052429]
[1722332153655,1.54597053,66903.0,66902.0,0.01052429]
[1722332154154,1.55397053,66903.0,66902.0,0.01052429]
[1722332154495,1.55901872,66903.0,66902.0,0.01052429]
[1722332155245,1.58247691,66903.0,66902.0,0.01052429]
[1722332155890,1.55901872,66903.0,66902.0,0.01052429]
[1722332156291,1.0863844,66903.0,66902.0,0.01052429]
[1722332157334,0.7874444,66903.0,66902.0,0.01052429]
[1722332157547,0.78872969,66903.0,66902.0,0.01052429]
[1722332157901,0.7877671,66903.0,66902.0,0.01052429]
[1722332158116,0.78874025,66903.0,66902.0,0.01052429]
[1722332158322,0.7877671,66903.0,66902.0,0.01052429]
[1722332158983,0.17156785,66903.0,66902.0,0.45894029]
[1722332159235,0.2361163,66903.0,66902.0,0.01052429]
[1722332159420,0.2361163,66903.0,66902.0,0.17439862]
[1722332159421,0.14688066,66903.0,66902.0,0.17439862]
[1722332159641,0.14688066,66903.0,66902.0,0.15999629]
[1722332159642,0.0145542,66903.0,66902.0,0.15999629]
[1722332159845,0.0145542,66903.0,66902.0,0.17439862]
[1722332160028,0.005,66903.0,66902.0,0.17439862]
[1722332160320,0.006,66903.0,66902.0,0.17439862]
[1722332160535,0.04560794,66903.0,66902.0,0.47334262]
[1722332160746,0.04560637,66903.0,66902.0,0.47334262]
[1722332160864,0.04660637,66903.0,66902.0,0.48134262]
[1722332161069,0.001,66903.0,66902.0,0.48134262]
[1722332161309,0.001,66903.0,66902.0,0.47334262]
[1722332161310,0.04460288,66903.0,66902.0,0.47334262]
[1722332161461,0.04560288,66903.0,66902.0,0.47334262]
[1722332161689,0.04560288,66903.0,66902.0,0.48334262]
[1722332161690,0.04660288,66903.0,66902.0,0.48334262]
[1722332161892,0.04660288,66903.0,66902.0,0.03492662]
[1722332162102,0.04815708,66903.0,66902.0,0.03492662]
[1722332162305,0.02545612,66903.0,66902.0,0.03492662]
[1722332162682,0.24215558,66903.0,66902.0,0.03492662]
[1722332163000,0.24215558,66903.0,66902.0,0.02052429]
[1722332163201,0.17648032,66903.0,66902.0,0.02052429]
[1722332163405,0.47542032,66903.0,66902.0,0.02052429]
[1722332163827,0.17648032,66903.0,66902.0,0.02052429]
[1722332164047,0.26567667,66903.0,66902.0,0.02052429]
[1722332164251,0.56306247,66903.0,66902.0,0.02052429]
[1722332164428,0.54076383,66903.0,66902.0,0.02052429]
[1722332165438,0.51730771,66903.0,66902.0,0.02052429]
[1722332166242,0.51730584,66903.0,66902.0,0.02052429]
[1722332166492,0.51730584,66903.0,66902.0,0.02143729]
[1722332168749,0.54076187,66903.0,66902.0,0.02143729]
[1722332169462,0.54078913,66903.0,66902.0,0.02143729]
[1722332170000,0.54220064,66903.0,66902.0,0.02143729]
[1722332170401,0.84114064,66903.0,66902.0,0.02143729]
[1722332170597,0.83972913,66903.0,66902.0,0.02143729]
[1722332172616,1.15930994,66903.0,66902.0,0.02143729]
[1722332172988,1.23275507,66903.0,66902.0,0.02143729]
[1722332173195,1.55825001,66903.0,66902.0,0.02143729]
[1722332173413,1.53479398,66903.0,66902.0,0.02143729]
[1722332173919,1.53479398,66903.0,66902.0,0.01143729]
[1722332174224,1.53379398,66903.0,66902.0,0.01143729]
[1722332174496,1.6884883,66903.0,66902.0,0.01143729]
[1722332174693,1.6964883,66903.0,66902.0,0.01143729]
[1722332175858,1.69663295,66903.0,66902.0,0.01143729]
[1722332176514,1.72009101,66903.0,66902.0,0.01143729]
[1722332176922,1.69663295,66903.0,66902.0,0.01143729]
[1722332177832,1.54593863,66903.0,66902.0,0.01143729]
[1722332179007,1.54568456,66903.0,66902.0,0.01143729]
[1722332180226,1.56914234,66903.0,66902.0,0.01143729]
[1722332181318,1.54568456,66903.0,66902.0,0.01143729]
[1722332182233,1.54574609,66903.0,66902.0,0.01143729]
[1722332182874,1.69644056,66903.0,66902.0,0.01143729]
[1722332184489,1.54574624,66903.0,66902.0,0.01143729]
[1722332184697,1.56920402,66903.0,66902.0,0.01143729]
[1722332184907,1.54574624,66903.0,66902.0,0.01143729]
[1722332185115,1.24680624,66903.0,66902.0,0.01143729]
[1722332187417,0.94786624,66903.0,66902.0,0.01143729]
[1722332187795,0.97132384,66903.0,66902.0,0.01143729]
[1722332188824,0.97062042,66903.0,66902.0,0.01143729]
[1722332192041,0.97045569,66903.0,66902.0,0.01143729]
[1722332192642,0.97045877,66903.0,66902.0,0.01143729]
[1722332193298,0.97179091,66903.0,66902.0,0.01143729]
[1722332193473,1.10582499,66903.0,66902.0,0.01143729]
[1722332193670,1.10449285,66903.0,66902.0,0.01143729]
[1722332194597,1.10456653,66903.0,66902.0,0.01143729]
[1722332195408,0.97057949,66903.0,66902.0,0.01143729]
[1722332195610,1.42021381,66903.0,66902.0,0.01143729]
[1722332195824,1.26951949,66903.0,66902.0,0.01143729]
[1722332196915,1.24606189,66903.0,66902.0,0.01143729]
[1722332198644,1.24664518,66903.0,66902.0,0.01143729]
[1722332198816,1.24664444,66903.0,66902.0,0.01143729]
[1722332200291,1.41839592,66903.0,66902.0,0.01143729]
[1722332200768,1.41995012,66903.0,66902.0,0.01143729]
[1722332200965,1.41839592,66903.0,66902.0,0.01143729]
[1722332201166,1.41973748,66903.0,66902.0,0.01143729]
[1722332201370,1.41839592,66903.0,66902.0,0.01143729]
[1722332201548,1.41960711,66903.0,66902.0,0.01143729]
[1722332201751,1.39205052,66903.0,66902.0,0.01143729]
[1722332201949,1.41764675,66903.0,66902.0,0.01143729]
[1722332202352,1.41759517,66903.0,66902.0,0.01143729]
[1722332202779,1.71653517,66903.0,66902.0,0.01143729]
[1722332203400,1.56824107,66903.0,66902.0,0.01143729]
[1722332203804,1.62872532,66903.0,66902.0,0.01143729]
[1722332204969,1.62908908,66903.0,66902.0,0.01143729]
[1722332205163,1.56815152,66903.0,66902.0,0.01143729]
[1722332205420,1.62931441,66903.0,66902.0,0.01143729]
[1722332205827,1.56638495,66903.0,66902.0,0.01143729]
[1722332208312,1.56711353,66903.0,66902.0,0.01143729]
[1722332211516,1.54092985,66903.0,66902.0,0.01143729]
[1722332211716,1.54329335,66903.0,66902.0,0.01143729]
[1722332212089,1.54329334,66903.0,66902.0,0.01143729]
[1722332212203,1.69398766,66903.0,66902.0,0.01143729]
[1722332212804,1.24435334,66903.0,66902.0,0.01143729]
[1722332213449,1.54329334,66903.0,66902.0,0.01143729]
[1722332214728,1.54413087,66903.0,66902.0,0.01143729]
[1722332215174,1.5675888,66903.0,66902.0,0.01143729]
[1722332215757,1.2686488,66903.0,66902.0,0.01143729]
[1722332215966,1.3452488,66903.0,66902.0,0.01143729]
[1722332218079,1.34548735,66903.0,66902.0,0.01143729]
[1722332220907,1.6175304,66903.0,66902.0,0.01143729]
[1722332221114,1.34535266,66903.0,66902.0,0.01143729]
[1722332221487,1.64429266,66903.0,66902.0,0.01143729]
[1722332221716,1.70614163,66903.0,66902.0,0.01143729]
[1722332222417,1.40720163,66903.0,66902.0,0.01143729]
[1722332222624,1.40875583,66903.0,66902.0,0.01143729]
[1722332222966,1.40720163,66903.0,66902.0,0.01143729]
[1722332223405,1.40845879,66903.0,66902.0,0.01143729]
[1722332223579,1.6175304,66903.0,66902.0,0.01143729]
[1722332223814,1.40845878,66903.0,66902.0,0.01143729]
[1722332224372,1.34582579,66903.0,66902.0,0.01143729]
[1722332224811,1.49689336,66903.0,66902.0,0.01143729]
[1722332225407,1.42184756,66903.0,66902.0,0.01143729]
[1722332225634,1.49689336,66903.0,66902.0,0.01143729]
[1722332226971,1.49788317,66903.0,66902.0,0.01143729]
[1722332228118,1.34681605,66903.0,66902.0,0.01143729]
[1722332228303,1.32464838,66903.0,66902.0,0.01143729]
[1722332228704,1.32335812,66903.0,66902.0,0.01143729]
[1722332229149,1.32491232,66903.0,66902.0,0.01143729]
[1722332230330,1.32518379,66903.0,66902.0,0.01143729]
[1722332230786,1.29668667,66903.0,66902.0,0.01143729]
[1722332231107,1.32457105,66903.0,66902.0,0.01143729]
[1722332231248,1.32612525,66903.0,66902.0,0.01143729]
[1722332231449,1.34958263,66903.0,66902.0,0.01143729]
[1722332231649,1.34802843,66903.0,66902.0,0.01143729]
[1722332233375,1.31941985,66903.0,66902.0,0.01143729]
[1722332233584,1.34810917,66903.0,66902.0,0.01143729]
[1722332235984,1.32465179,66903.0,66902.0,0.01143729]
[1722332236890,1.32468637,66903.0,66902.0,0.01143729]
[1722332239145,1.34814375,66903.0,66902.0,0.01143729]
[1722332240276,1.31941985,66903.0,66902.0,0.01143729]
[1722332240401,1.34810642,66903.0,66902.0,0.01143729]
[1722332240605,1.41214967,66903.0,66902.0,0.01143729]
[1722332240810,1.41216159,66903.0,66902.0,0.01143729]
[1722332243494,1.41216747,66903.0,66902.0,0.01143729]
[1722332246766,1.31941985,66903.0,66902.0,0.01143729]
[1722332246974,1.41140899,66903.0,66902.0,0.01143729]
[1722332249093,1.38795161,66903.0,66902.0,0.01143729]
[1722332249294,1.17095161,66903.0,66902.0,0.01143729]
[1722332249467,1.10727634,66903.0,66902.0,0.01143729]
[1722332250123,0.18390904,66903.0,66902.0,0.11266574]
[1722332250277,0.81077166,66903.0,66902.0,0.15889111]
[1722332250666,0.81087379,66903.0,66902.0,0.14593729]
[1722332250864,0.81087379,66903.0,66902.0,0.15889111]
[1722332251072,0.79787379,66903.0,66902.0,0.15889111]
[1722332251292,0.49893379,66903.0,66902.0,0.15889111]
[1722332251666,0.50093379,66903.0,66902.0,0.15593729]
[1722332251885,0.79987379,66903.0,66902.0,0.15593729]
[1722332252058,0.79987379,66903.0,66902.0,0.16889111]
[1722332252197,0.79987379,66903.0,66902.0,0.15593729]
[1722332253240,0.77078904,66903.0,66902.0,0.15593729]
[1722332253451,1.09869539,66903.0,66902.0,0.15593729]
[1722332253772,1.12215178,66903.0,66902.0,0.10053729]
[1722332254832,1.09869539,66903.0,66902.0,0.10053729]
[1722332255047,1.09869539,66903.0,66902.0,0.02143729]
[1722332256615,1.09796463,66903.0,66902.0,0.02143729]
[1722332258239,1.12142102,66903.0,66902.0,0.02143729]
[1722332258442,1.09796463,66903.0,66902.0,0.02143729]
[1722332260157,1.09853231,66903.0,66902.0,0.02143729]
[1722332260505,1.09853318,66903.0,66902.0,0.02143729]
[1722332261723,1.2492275,66903.0,66902.0,0.02143729]
[1722332261931,1.27268389,66903.0,66902.0,0.02143729]
[1722332262454,1.12198957,66903.0,66902.0,0.02143729]
[1722332262873,1.09853318,66903.0,66902.0,0.02143729]
[1722332263080,1.06972904,66903.0,66902.0,0.02143729]
[1722332263283,1.09841435,66903.0,66902.0,0.02143729]
[1722332266011,1.12187074,66903.0,66902.0,0.02143729]
[1722332266427,1.09841435,66903.0,66902.0,0.02143729]
[1722332266644,1.09854206,66903.0,66902.0,0.02143729]
[1722332267644,1.24923638,66903.0,66902.0,0.02143729]
[1722332268932,1.09854206,66903.0,66902.0,0.02143729]
[1722332269614,1.12199845,66903.0,66902.0,0.02143729]
[1722332269958,1.18123835,66903.0,66902.0,0.02143729]
[1722332270361,1.15318543,66903.0,66902.0,0.02143729]
[1722332270560,1.18124015,66903.0,66902.0,0.02143729]
[1722332270829,1.30847808,66903.0,66902.0,0.02143729]
[1722332272044,1.60741808,66903.0,66902.0,0.02143729]
[1722332272452,1.68831808,66903.0,66902.0,0.02143729]
[1722332273036,1.68745957,66903.0,66902.0,0.02143729]
[1722332273841,1.70991691,66903.0,66902.0,0.01243729]
[1722332274111,1.68645957,66903.0,66902.0,0.01243729]
[1722332274286,1.68545957,66903.0,66902.0,0.01243729]
[1722332274642,1.69045957,66903.0,66902.0,0.01243729]
[1722332274845,1.53976525,66903.0,66902.0,0.01243729]
[1722332276473,1.53996069,66903.0,66902.0,0.01243729]
[1722332276628,1.53996069,66903.0,66902.0,0.01143729]
[1722332277178,1.56441803,66903.0,66902.0,0.01143729]
[1722332277458,1.54096069,66903.0,66902.0,0.01143729]
[1722332279623,1.51356904,66903.0,66902.0,0.01143729]
[1722332279831,1.54136369,66903.0,66902.0,0.01143729]
[1722332280172,1.24248518,66903.0,66902.0,0.01143729]
[1722332280378,1.26594256,66903.0,66902.0,0.01143729]
[1722332281002,1.20594256,66903.0,66902.0,0.01143729]
[1722332281367,1.2063215,66903.0,66902.0,0.01143729]
[1722332281763,1.3574294,66903.0,66902.0,0.01143729]
[1722332282051,1.20647775,66903.0,66902.0,0.01143729]
[1722332282197,1.35758069,66903.0,66902.0,0.01143729]
[1722332282376,1.20647775,66903.0,66902.0,0.01143729]
[1722332282790,1.35758069,66903.0,66902.0,0.01143729]
[1722332283198,1.20647775,66903.0,66902.0,0.01143729]
[1722332283419,1.35758069,66903.0,66902.0,0.01143729]
[1722332285157,1.32919413,66903.0,66902.0,0.01143729]
[1722332285364,1.35760267,66903.0,66902.0,0.01143729]
[1722332288546,1.35812164,66903.0,66902.0,0.01143729]
[1722332289621,1.71813726,66903.0,66902.0,0.01143729]
[1722332291657,1.68922074,66903.0,66902.0,0.01143729]
[1722332291858,1.71709348,66903.0,66902.0,0.01143729]
[1722332292294,1.7170936,66903.0,66902.0,0.01143729]
[1722332292670,1.69363622,66903.0,66902.0,0.01143729]
[1722332294631,1.75678503,66903.0,66902.0,0.01143729]
[1722332295031,2.05559115,66903.0,66902.0,0.01143729]
[1722332295180,2.15559115,66903.0,66902.0,0.01143729]
[1722332295804,2.17904912,66903.0,66902.0,0.01143729]
[1722332296526,2.18904912,66903.0,66902.0,0.01143729]
[1722332297423,2.17904912,66903.0,66902.0,0.01143729]
[1722332298241,2.17913379,66903.0,66902.0,0.01143729]
[1722332301454,2.08816133,66903.0,66902.0,0.01143729]
[1722332301656,2.17921241,66903.0,66902.0,0.01143729]
[1722332302010,2.15137192,66903.0,66902.0,0.01143729]
[1722332302210,2.17918861,66903.0,66902.0,0.01143729]
[1722332304823,2.17753633,66903.0,66902.0,0.01143729]
[1722332304977,2.15407836,66903.0,66902.0,0.01143729]
[1722332307802,1.70444404,66903.0,66902.0,0.01143729]
[1722332307966,1.70499457,66903.0,66902.0,0.01143729]
[1722332308163,1.72845267,66903.0,66902.0,0.01143729]
[1722332309248,2.02739267,66903.0,66902.0,0.01143729]
[1722332309491,2.02539267,66903.0,66902.0,0.01143729]
[1722332309686,2.16290862,66903.0,66902.0,0.01143729]
[1722332310535,2.02539267,66903.0,66902.0,0.01143729]
[1722332310748,2.13941602,66903.0,66902.0,0.01143729]
[1722332311101,2.04949049,66903.0,66902.0,0.01143729]
[1722332311275,2.1346153,66903.0,66902.0,0.01143729]
[1722332311782,2.09719195,66903.0,66902.0,0.01143729]
[1722332312531,2.24788627,66903.0,66902.0,0.01143729]
[1722332313512,2.24859502,66903.0,66902.0,0.01143729]
[1722332314114,2.30159502,66903.0,66902.0,0.01143729]
[1722332314314,2.41912804,66903.0,66902.0,0.01143729]
[1722332314515,2.53315139,66903.0,66902.0,0.01143729]
[1722332314710,2.50969329,66903.0,66902.0,0.01143729]
[1722332316846,2.52969329,66903.0,66902.0,0.01143729]
[1722332317022,2.50969329,66903.0,66902.0,0.01143729]
[1722332317430,2.52969329,66903.0,66902.0,0.01143729]
[1722332317643,2.68760195,66903.0,66902.0,0.01143729]
[1722332317848,2.55320995,66903.0,66902.0,0.01143729]
[1722332318055,2.52975135,66903.0,66902.0,0.01143729]
[1722332319476,2.75005204,66903.0,66902.0,0.01143729]
[1722332320175,2.82869135,66903.0,66902.0,2.9e-07]
[1722332320960,2.76624254,66903.0,66902.0,2.9e-07]
[1722332321170,2.85237907,66903.0,66902.0,2.9e-07]
[1722332321493,2.85242,66903.0,66902.0,2.9e-07]
[1722332322222,2.73839665,66903.0,66902.0,2.9e-07]
[1722332322625,2.71839665,66903.0,66902.0,2.9e-07]
[1722332322748,2.6008807,66903.0,66902.0,2.9e-07]
[1722332323174,2.51470324,66903.0,66902.0,2.9e-07]
[1722332323381,2.60118819,66903.0,66902.0,2.9e-07]
[1722332323778,2.58118819,66903.0,66902.0,2.9e-07]
[1722332324259,2.58118861,66903.0,66902.0,2.9e-07]
[1722332327405,2.5812348,66903.0,66902.0,2.9e-07]
[1722332328021,2.55777492,66903.0,66902.0,2.9e-07]
[1722332328220,2.57777492,66903.0,66902.0,2.9e-07]
[1722332328426,2.55777492,66903.0,66902.0,2.9e-07]
[1722332330317,2.77801198,66903.0,66902.0,2.9e-07]
[1722332330719,2.55777492,66903.0,66902.0,2.9e-07]
[1722332330919,2.77811781,66903.0,66902.0,2.9e-07]
[1722332331160,2.80157747,66903.0,66902.0,2.9e-07]
[1722332331333,2.74059707,66903.0,66902.0,2.9e-07]
[1722332331535,2.8016589,66903.0,66902.0,2.9e-07]
[1722332332198,2.58131599,66903.0,66902.0,2.9e-07]
[1722332333647,2.43062167,66903.0,66902.0,2.9e-07]
[1722332334043,2.3440087,66903.0,66902.0,2.9e-07]
[1722332334248,2.43089293,66903.0,66902.0,2.9e-07]
[1722332335433,2.40743327,66903.0,66902.0,2.9e-07]
[1722332335648,2.42743327,66903.0,66902.0,2.9e-07]
[1722332335818,2.57812759,66903.0,66902.0,2.9e-07]
[1722332337377,2.57865959,66903.0,66902.0,2.9e-07]
[1722332340727,2.57882154,66903.0,66902.0,2.9e-07]
[1722332341129,2.6022812,66903.0,66902.0,2.9e-07]
[1722332341329,2.60228118,66903.0,66902.0,2.9e-07]
[1722332341706,2.602615,66903.0,66902.0,2.9e-07]
[1722332342318,2.66373835,66903.0,66902.0,2.9e-07]
[1722332343164,2.66391412,66903.0,66902.0,2.9e-07]
[1722332343308,2.60279077,66903.0,66902.0,2.9e-07]
[1722332343930,1.644318,66897.0,66896.0,0.005351]
[1722332344132,2.06928509,66897.0,66896.0,0.005351]
[1722332345243,2.07028509,66897.0,66896.0,0.011351]
[1722332345456,2.2908618,66897.0,66896.0,0.011351]
[1722332345655,2.44055612,66897.0,66896.0,0.005351]
[1722332345858,2.2948618,66897.0,66896.0,0.005351]
[1722332346083,2.2958618,66897.0,66896.0,0.005351]
[1722332346257,2.07560236,66897.0,66896.0,0.005351]
[1722332346862,1.99900236,66897.0,66896.0,0.005351]
[1722332347084,2.07560236,66897.0,66896.0,0.005351]
[1722332347246,2.22629668,66897.0,66896.0,0.005351]
[1722332348792,2.08529668,66897.0,66896.0,0.005351]
[1722332348972,1.63563536,66897.0,66896.0,0.005351]
[1722332349178,1.63655716,66897.0,66896.0,0.005351]
[1722332350591,1.93552416,66897.0,66896.0,0.005351]
[1722332351214,1.94453856,66897.0,66896.0,0.005351]
[1722332352090,1.85521174,66897.0,66896.0,0.005351]
[1722332352296,1.9432037,66897.0,66896.0,0.005351]
[1722332352499,1.85521174,66897.0,66896.0,0.005351]
[1722332352611,1.94304936,66897.0,66896.0,0.005351]
[1722332355158,1.94305691,66897.0,66896.0,0.005351]
[1722332355773,1.86645691,66897.0,66896.0,0.005351]
[1722332356208,1.94305691,66897.0,66896.0,0.005351]
[1722332358386,1.94318537,66897.0,66896.0,0.005351]
[1722332358562,2.09387969,66897.0,66896.0,0.005351]
[1722332358808,1.94318537,66897.0,66896.0,0.005351]
[1722332359642,2.00312237,66897.0,66896.0,0.005351]
[1722332360677,1.94318537,66897.0,66896.0,0.005351]
[1722332361106,2.00312237,66897.0,66896.0,0.005351]
[1722332361727,1.97702019,66897.0,66896.0,0.005351]
[1722332361908,2.00340291,66897.0,66896.0,0.005351]
[1722332362111,2.00340288,66897.0,66896.0,0.005351]
[1722332362761,2.1540972,66897.0,66896.0,0.005351]
[1722332363289,2.00340288,66897.0,66896.0,0.005351]
[1722332364952,2.00307481,66897.0,66896.0,0.005351]
[1722332365579,2.02653439,66897.0,66896.0,0.005351]
[1722332366351,1.96659739,66897.0,66896.0,0.005351]
[1722332366732,2.02653539,66897.0,66896.0,0.005351]
[1722332368291,1.87867132,66897.0,66896.0,0.005351]
[1722332368508,2.02668447,66897.0,66896.0,0.005351]
[1722332368820,1.96674647,66897.0,66896.0,0.005351]
[1722332369137,2.02668447,66897.0,66896.0,0.005351]
[1722332369552,1.96674647,66897.0,66896.0,0.005351]
[1722332371016,2.11744079,66897.0,66896.0,0.005351]
[1722332371161,1.89014647,66897.0,66896.0,0.005351]
[1722332371358,1.96674647,66897.0,66896.0,0.005351]
[1722332372100,1.96631895,66897.0,66896.0,0.005351]
[1722332374147,1.96610286,66897.0,66896.0,0.005351]